fUST/lending_fUST_20251014
["ID","MTS","AMOUNT","RATE_DAILY","PERIOD"]
[391182264,1760409071212,-153.068859,0.00030344,30]
[391182265,1760409071222,-153.068859,0.00030344,30]
[391182266,1760409071231,-153.068859,0.00030344,30]
[391182267,1760409071240,-152.538745,0.00030344,30]
[391182268,1760409071250,-151.0,0.00030344,30]
[391182269,1760409071259,-151.0,0.00030344,30]
[391182270,1760409071346,-153.241545,0.00030344,30]
[391182271,1760409071357,-151.0,0.00030344,30]
[391182272,1760409071366,-151.85175,0.00030344,30]
[391182273,1760409071377,-151.0,0.00030344,30]
[391182274,1760409071387,-151.0,0.00030344,30]
[391182275,1760409071399,-151.0,0.00030344,30]
[391182276,1760409071408,-151.0,0.00030344,30]
[391182277,1760409071420,-151.0,0.00030344,30]
[391182278,1760409071430,-151.0,0.00030344,30]
[391182279,1760409071440,-151.0,0.00030344,30]
[391182280,1760409071451,-151.0,0.00030344,30]
[391182281,1760409071460,-151.0,0.00030344,30]
[391182282,1760409071470,-153.888726,0.00030344,30]
[391182283,1760409071480,-151.0,0.00030344,30]
[391182284,1760409071489,-153.442054,0.00030344,30]
[391182285,1760409071499,-154.086887,0.00030344,30]
[391182286,1760409071509,-151.0,0.00030344,30]
[391182287,1760409071518,-151.0,0.00030344,30]
[391182288,1760409071527,-152.179967,0.00030344,30]
[391182289,1760409071537,-151.0,0.00030344,30]
[391182290,1760409071546,-622.445497,0.00030344,30]
[391182291,1760409071556,-622.445497,0.00030344,30]
[391182292,1760409071565,-622.445497,0.00030344,30]
[391182293,1760409071574,-622.445497,0.00030344,30]
[391182294,1760409071584,-200.0,0.00030349,10]
[391182295,1760409071597,-243.36953757,0.00030349,10]
[391182296,1760409071606,-151.0,0.0003035,30]
[391182297,1760409071615,-151.0,0.0003035,30]
[391182298,1760409071625,-199.796118,0.0003035,30]
[391182299,1760409071636,-151.0,0.0003035,30]
[391182300,1760409071646,-151.0,0.0003035,30]
[391182301,1760409071655,-203.0,0.0003036,26]
[391182302,1760409071665,-200.0,0.00030369,120]
[391182303,1760409071676,-600.0,0.0003037,2]
[391182304,1760409071685,-2000.0,0.000304,3]
[391182305,1760409071694,-2000.0,0.000304,3]
[391182306,1760409071703,-1500.0,0.000304,3]
[391182307,1760409071712,-400.0,0.0003041,120]
[391182308,1760409071721,-8507.2665587,0.00030437,2]
[391182309,1760409071731,-909.0512346,0.00030437,2]
[391182310,1760409071740,-151.0,0.00030465,30]
[391182311,1760409071749,-185.900943,0.00030465,30]
[391182312,1760409071758,-185.900943,0.00030465,30]
[391182313,1760409071767,-185.900943,0.00030465,30]
[391182314,1760409071776,-151.0,0.00030465,30]
[391182315,1760409071785,-185.900943,0.00030465,30]
[391182316,1760409071794,-255.874482,0.00030465,30]
[391182317,1760409071803,-255.874482,0.00030465,30]
[391182318,1760409071813,-255.874482,0.00030465,30]
[391182319,1760409071823,-169.181887,0.00030465,15]
[391182320,1760409071832,-255.874482,0.00030465,30]
[391182321,1760409071842,-169.181887,0.00030465,15]
[391182322,1760409071850,-169.181887,0.00030465,15]
[391182323,1760409071859,-169.181887,0.00030465,15]
[391182324,1760409071867,-151.0,0.00030465,30]
[391182325,1760409071876,-151.0,0.00030465,30]
[391182326,1760409071885,-151.0,0.00030465,30]
[391182327,1760409071894,-151.0,0.00030465,30]
[391182328,1760409071903,-151.0,0.00030465,30]
[391182329,1760409071911,-151.0,0.00030465,30]
[391182330,1760409071921,-151.0,0.00030465,30]
[391182331,1760409071930,-151.0,0.00030465,30]
[391182332,1760409071939,-151.0,0.00030465,30]
[391182333,1760409071948,-151.0,0.00030465,30]
[391182334,1760409071957,-151.0,0.00030465,30]
[391182335,1760409071966,-151.0,0.00030465,30]
[391182336,1760409071975,-151.0,0.00030465,30]
[391182337,1760409071984,-177.565645,0.00030465,30]
[391182338,1760409071992,-177.565645,0.00030465,30]
[391182339,1760409072002,-151.0,0.00030465,30]
[391182340,1760409072011,-151.0,0.00030465,30]
[391182341,1760409072020,-151.0,0.00030465,30]
[391182342,1760409072029,-177.565645,0.00030465,30]
[391182343,1760409072037,-158.901146,0.00030465,30]
[391182344,1760409072046,-177.565645,0.00030465,30]
[391182345,1760409072056,-853.377363,0.00030465,30]
[391182346,1760409072065,-853.377363,0.00030465,30]
[391182347,1760409072074,-853.377363,0.00030465,30]
[391182348,1760409072083,-853.377363,0.00030465,30]
[391182349,1760409072092,-151.0,0.00030465,30]
[391182350,1760409072101,-151.0,0.00030465,30]
[391182351,1760409072110,-154.167012,0.00030465,30]
[391182352,1760409072119,-151.0,0.00030465,30]
[391182353,1760409072129,-197.123568,0.00030465,30]
[391182354,1760409072137,-151.0,0.00030465,30]
[391182355,1760409072146,-151.0,0.00030465,30]
[391182356,1760409072155,-151.0,0.00030465,30]
[391182357,1760409072164,-151.0,0.00030465,30]
[391182358,1760409072173,-151.0,0.00030465,30]
[391182359,1760409072181,-151.0,0.00030465,30]
[391182360,1760409072190,-151.0,0.00030465,30]
[391182361,1760409072199,-151.0,0.00030465,30]
[391182362,1760409072208,-151.0,0.00030465,30]
[391182363,1760409072216,-151.0,0.00030465,30]
[391182364,1760409072225,-151.0,0.00030465,30]
[391182365,1760409072234,-151.0,0.00030465,30]
[391182366,1760409072243,-151.0,0.00030465,30]
[391182367,1760409072252,-151.0,0.00030465,30]
[391182368,1760409072261,-151.0,0.00030465,30]
[391182369,1760409072269,-166.88353,0.00030465,30]
[391182370,1760409072278,-151.0,0.00030465,30]
[391182371,1760409072287,-151.0,0.00030465,30]
[391182372,1760409072295,-222.699761,0.00030465,30]
[391182373,1760409072304,-151.0,0.00030465,30]
[391182374,1760409072313,-222.699761,0.00030465,30]
[391182375,1760409072322,-222.699761,0.00030465,30]
[391182376,1760409072331,-222.699761,0.00030465,30]
[391182377,1760409072339,-151.0,0.00030465,30]
[391182378,1760409072349,-151.0,0.00030465,30]
[391182379,1760409072357,-151.0,0.00030465,30]
[391182380,1760409072366,-477.257238,0.00030465,30]
[391182381,1760409072375,-477.257238,0.00030465,30]
[391182382,1760409072384,-477.257238,0.00030465,30]
[391182383,1760409072393,-477.257238,0.00030465,30]
[391182384,1760409072402,-151.0,0.00030465,30]
[391182385,1760409072411,-151.0,0.00030465,30]
[391182386,1760409072420,-199.605788,0.00030465,30]
[391182387,1760409072429,-151.0,0.00030465,30]
[391182388,1760409072438,-1374223.6167,0.00030465,2]
[391182389,1760409072447,-600.0,0.00030471,2]
[391182390,1760409072456,-381.95119137,0.00030473,5]
[391182391,1760409072465,-344.05342886,0.00030491,26]
[391182392,1760409072474,-1004.797559,0.000305,3]
[391182393,1760409072483,-249.53072097,0.00030512,30]
[391182394,1760409072491,-151.0,0.00030544,30]
[391182395,1760409072500,-151.0,0.00030544,30]
[391182396,1760409072508,-151.0,0.00030544,30]
[391182397,1760409072517,-151.0,0.00030544,2]
[391182398,1760409072526,-152.048631,0.00030544,30]
[391182399,1760409072535,-151.0,0.00030544,30]
[391182400,1760409072543,-153.068859,0.00030544,30]
[391182401,1760409072552,-153.068859,0.00030544,30]
[391182402,1760409072561,-153.068859,0.00030544,30]
[391182403,1760409072570,-153.068859,0.00030544,30]
[391182404,1760409072579,-151.0,0.00030544,30]
[391182405,1760409072588,-151.0,0.00030544,30]
[391182406,1760409072602,-151.0,0.00030544,30]
[391182407,1760409072611,-151.0,0.00030544,30]
[391182408,1760409072620,-151.0,0.00030544,30]
[391182409,1760409072628,-151.0,0.00030544,30]
[391182410,1760409072638,-151.0,0.00030544,30]
[391182411,1760409072647,-151.0,0.00030544,30]
[391182412,1760409072655,-151.0,0.00030544,30]
[391182413,1760409072664,-151.0,0.00030544,30]
[391182414,1760409072675,-151.0,0.00030544,30]
[391182415,1760409072683,-245.927379,0.00030544,30]
[391182416,1760409072692,-151.0,0.00030544,30]
[391182417,1760409072701,-458.64960447,0.00030544,2]
[391182418,1760409072783,-151.0,0.00030544,30]
[391182419,1760409072792,-151.0,0.00030544,30]
[391182420,1760409072802,-151.0,0.00030544,30]
[391182421,1760409072811,-622.445497,0.00030544,30]
[391182422,1760409072820,-622.445497,0.00030544,30]
[391182423,1760409072828,-622.445497,0.00030544,30]
[391182424,1760409072837,-622.445497,0.00030544,30]
[391182425,1760409072847,-400.0,0.00030547,120]
[391182426,1760409072856,-200.0,0.00030549,10]
[391182427,1760409072865,-151.0,0.0003055,30]
[391182428,1760409072873,-180.684402,0.0003055,30]
[391182429,1760409072883,-152.091184,0.0003055,30]
[391182430,1760409072892,-152.002943,0.0003055,30]
[391182431,1760409072901,-151.0,0.0003055,30]
[391182432,1760409072910,-152.383952,0.0003055,30]
[391182433,1760409072920,-151.0,0.0003055,30]
[391182434,1760409072929,-151.0,0.0003055,30]
[391182435,1760409072938,-241.571953,0.0003055,30]
[391182436,1760409072947,-151.0,0.0003055,30]
[391182437,1760409072956,-151.0,0.0003055,30]
[391182438,1760409072965,-151.0,0.0003055,30]
[391182439,1760409072975,-151.0,0.0003055,30]
[391182440,1760409072984,-151.0,0.0003055,30]
[391182441,1760409072993,-151.0,0.0003055,30]
[391182442,1760409073002,-152.308676,0.0003055,30]
[391182443,1760409073010,-151.0,0.0003055,30]
[391182444,1760409073019,-151.0,0.0003055,30]
[391182445,1760409073029,-151.0,0.0003055,30]
[391182446,1760409073038,-151.0,0.0003055,30]
[391182447,1760409073047,-151.0,0.0003055,30]
[391182448,1760409073057,-151.0,0.0003055,30]
[391182449,1760409073066,-154.331858,0.0003055,30]
[391182450,1760409073075,-151.0,0.0003055,30]
[391182451,1760409073084,-800.0,0.0003055,2]
[391182452,1760409073093,-748.0,0.0003057,2]
[391182453,1760409073103,-152.02672942,0.00030573,5]
[391182454,1760409073112,-653.34709569,0.00030577,2]
[391182455,1760409073121,-800.0,0.00030592,2]
[391182456,1760409073132,-151.018444,0.000306,3]
[391182457,1760409073142,-158.752212,0.000306,3]
[391182458,1760409073152,-69084.52,0.000306,7]
[391182459,1760409073161,-205.56371041,0.00030619,7]
[391182460,1760409073172,-748.0,0.0003062,2]
[391182461,1760409073182,-748.0,0.0003062,7]
[391182462,1760409073191,-800.0,0.00030626,2]
[391182463,1760409073201,-748.0,0.00030629,2]
[391182464,1760409073211,-151.0,0.00030644,30]
[391182465,1760409073220,-151.0,0.00030644,30]
[391182466,1760409073230,-151.0,0.00030644,30]
[391182467,1760409073239,-251.505133,0.00030644,30]
[391182468,1760409073248,-153.029224,0.00030644,2]
[391182469,1760409073259,-164.910321,0.00030644,30]
[391182470,1760409073270,-153.068859,0.00030644,30]
[391182471,1760409073281,-153.068859,0.00030644,30]
[391182472,1760409073291,-153.068859,0.00030644,30]
[391182473,1760409073301,-153.068859,0.00030644,30]
[391182474,1760409073311,-153.068859,0.00030644,30]
[391182475,1760409073321,-153.068859,0.00030644,30]
[391182476,1760409073331,-153.068859,0.00030644,30]
[391182477,1760409073343,-153.068859,0.00030644,30]
[391182478,1760409073353,-153.068859,0.00030644,30]
[391182479,1760409073363,-153.068859,0.00030644,30]
[391182480,1760409073372,-153.068859,0.00030644,30]
[391182481,1760409073384,-153.068855,0.00030644,30]
[391182482,1760409073393,-151.0,0.00030644,30]
[391182483,1760409073402,-151.0,0.00030644,30]
[391182484,1760409073412,-151.0,0.00030644,30]
[391182485,1760409073421,-251.096869,0.00030644,30]
[391182486,1760409073431,-297.786223,0.00030644,30]
[391182487,1760409073440,-151.0,0.00030644,30]
[391182488,1760409073450,-151.0,0.00030644,30]
[391182489,1760409073460,-151.0,0.00030644,30]
[391182490,1760409073470,-151.0,0.00030644,30]
[391182491,1760409073480,-151.0,0.00030644,30]
[391182492,1760409073489,-151.0,0.00030644,30]
[391182493,1760409073500,-151.0,0.00030644,30]
[391182494,1760409073509,-151.0,0.00030644,30]
[391182495,1760409073518,-151.0,0.00030644,30]
[391182496,1760409073527,-151.0,0.00030644,30]
[391182497,1760409073536,-228.869359,0.00030644,30]
[391182498,1760409073545,-151.0,0.00030644,30]
[391182499,1760409073555,-152.489975,0.00030644,30]
[391182500,1760409073565,-151.0,0.00030644,30]
[391182501,1760409073574,-151.0,0.00030644,30]
[391182502,1760409073585,-153.159515,0.00030644,30]
[391182503,1760409073596,-151.0,0.00030644,30]
[391182504,1760409073605,-151.0,0.00030644,30]
[391182505,1760409073614,-151.0,0.00030644,30]
[391182506,1760409073624,-151.0,0.00030644,30]
[391182507,1760409073635,-151.0,0.00030644,30]
[391182508,1760409073644,-151.0,0.00030644,30]
[391182509,1760409073655,-151.0,0.00030644,30]
[391182510,1760409073665,-151.0,0.00030644,30]
[391182511,1760409073676,-151.0,0.00030644,30]
[391182512,1760409073685,-151.0,0.00030644,30]
[391182513,1760409073695,-151.0,0.00030644,30]
[391182514,1760409073705,-151.0,0.00030644,30]
[391182515,1760409073714,-151.0,0.00030644,30]
[391182516,1760409073724,-160.853661,0.00030644,30]
[391182517,1760409073734,-151.728024,0.00030644,30]
[391182518,1760409073744,-622.445497,0.00030644,30]
[391182519,1760409073753,-622.445497,0.00030644,30]
[391182520,1760409073763,-622.445497,0.00030644,30]
[391182521,1760409073773,-622.445497,0.00030644,30]
[391182522,1760409073782,-622.445497,0.00030644,30]
[391182523,1760409073791,-622.445497,0.00030644,30]
[391182524,1760409073801,-622.445497,0.00030644,30]
[391182525,1760409073810,-622.445497,0.00030644,30]
[391182526,1760409073820,-622.445497,0.00030644,30]
[391182527,1760409073830,-622.445497,0.00030644,30]
[391182528,1760409073839,-622.445497,0.00030644,30]
[391182529,1760409073848,-622.4454886,0.00030644,30]
[391182530,1760409073857,-10000.0,0.00030644,2]
[391182531,1760409073867,-10000.0,0.00030644,2]
[391182532,1760409073876,-10000.0,0.00030644,2]
[391182533,1760409073890,-10000.0,0.00030644,2]
[391182534,1760409073899,-10000.0,0.00030644,2]
[391182535,1760409073908,-10000.0,0.00030644,2]
[391182536,1760409073917,-10000.0,0.00030644,2]
[391182537,1760409073927,-10000.0,0.00030644,2]
[391182538,1760409073936,-10000.0,0.00030644,2]
[391182539,1760409073945,-10000.0,0.00030644,2]
[391182540,1760409073954,-10000.0,0.00030644,2]
[391182541,1760409073963,-1536.0,0.00030644,2]
[391182542,1760409073974,-5000.0,0.00030644,60]
[391182543,1760409073983,-151.879279,0.0003065,30]
[391182544,1760409073992,-153.23549,0.0003065,30]
[391182545,1760409074002,-151.0,0.0003065,30]
[391182546,1760409074011,-151.0,0.0003065,30]
[391182547,1760409074020,-152.524542,0.0003065,30]
[391182548,1760409074030,-152.972078,0.0003065,30]
[391182549,1760409074040,-151.0,0.0003065,30]
[391182550,1760409074049,-151.0,0.0003065,30]
[391182551,1760409074058,-151.0,0.0003065,30]
[391182552,1760409074068,-151.0,0.0003065,30]
[391182553,1760409074078,-151.0,0.0003065,30]
[391182554,1760409074155,-151.0,0.0003065,30]
[391182555,1760409074165,-151.0,0.0003065,30]
[391182556,1760409074174,-151.0,0.0003065,30]
[391182557,1760409074184,-151.0,0.0003065,30]
[391182558,1760409074194,-151.0,0.0003065,30]
[391182559,1760409074203,-151.0,0.0003065,30]
[391182560,1760409074212,-151.0,0.0003065,30]
[391182561,1760409074222,-151.0,0.0003065,30]
[391182562,1760409074231,-151.0,0.0003065,30]
[391182563,1760409074240,-151.0,0.0003065,30]
[391182564,1760409074249,-151.0,0.0003065,30]
[391182565,1760409074260,-151.0,0.0003065,30]
[391182566,1760409074269,-213.26052721,0.0003065,30]
[391182567,1760409074278,-151.0,0.0003065,30]
[391182568,1760409074287,-151.0,0.0003065,30]
[391182569,1760409074297,-153.274618,0.0003065,30]
[391182570,1760409074306,-151.0,0.0003065,30]
[391182571,1760409074315,-151.0,0.0003065,30]
[391182572,1760409074325,-151.0,0.0003065,30]
[391182573,1760409074335,-151.0,0.0003065,30]
[391182574,1760409074344,-151.0,0.0003065,30]
[391182575,1760409074355,-151.0,0.0003065,30]
[391182576,1760409074365,-151.0,0.0003065,30]
[391182577,1760409074374,-151.0,0.0003065,30]
[391182578,1760409074383,-151.0,0.0003065,30]
[391182579,1760409074392,-151.0,0.0003065,30]
[391182580,1760409074401,-151.0,0.0003065,30]
[391182581,1760409074410,-164.582975,0.0003065,30]
[391182582,1760409074421,-151.0,0.0003065,30]
[391182583,1760409074430,-151.0,0.0003065,30]
[391182584,1760409074440,-151.0,0.0003065,30]
[391182585,1760409074449,-151.0,0.0003065,30]
[391182586,1760409074458,-151.0,0.0003065,30]
[391182587,1760409074469,-151.0,0.0003065,30]
[391182588,1760409074478,-153.175428,0.0003065,30]
[391182589,1760409074489,-748.0,0.00030659,2]
[391182590,1760409074498,-151.0,0.00030665,30]
[391182591,1760409074508,-185.900943,0.00030665,30]
[391182592,1760409074517,-185.900943,0.00030665,30]
[391182593,1760409074527,-185.900943,0.00030665,30]
[391182594,1760409074538,-151.0,0.00030665,30]
[391182595,1760409074548,-185.900943,0.00030665,30]
[391182596,1760409074558,-255.874482,0.00030665,30]
[391182597,1760409074569,-255.874482,0.00030665,30]
[391182598,1760409074577,-255.874482,0.00030665,30]
[391182599,1760409074587,-169.181887,0.00030665,15]
[391182600,1760409074602,-255.874482,0.00030665,30]
[391182601,1760409074611,-169.181887,0.00030665,15]
[391182602,1760409074620,-169.181887,0.00030665,15]
[391182603,1760409074629,-169.181887,0.00030665,15]
[391182604,1760409074641,-151.0,0.00030665,30]
[391182605,1760409074650,-163.898661,0.00030665,30]
[391182606,1760409074659,-151.0,0.00030665,30]
[391182607,1760409074669,-151.0,0.00030665,30]
[391182608,1760409074678,-151.0,0.00030665,30]
[391182609,1760409074687,-151.0,0.00030665,30]
[391182610,1760409074697,-151.0,0.00030665,30]
[391182611,1760409074706,-151.0,0.00030665,30]
[391182612,1760409074716,-151.0,0.00030665,30]
[391182613,1760409074727,-151.0,0.00030665,30]
[391182614,1760409074738,-151.0,0.00030665,30]
[391182615,1760409074748,-177.565645,0.00030665,30]
[391182616,1760409074758,-177.565645,0.00030665,30]
[391182617,1760409074767,-151.0,0.00030665,30]
[391182618,1760409074779,-151.0,0.00030665,30]
[391182619,1760409074788,-151.0,0.00030665,30]
[391182620,1760409074797,-177.565645,0.00030665,30]
[391182621,1760409074808,-177.565645,0.00030665,30]
[391182622,1760409074817,-853.377363,0.00030665,30]
[391182623,1760409074826,-853.377363,0.00030665,30]
[391182624,1760409074836,-853.377363,0.00030665,30]
[391182625,1760409074847,-853.377363,0.00030665,30]
[391182626,1760409074857,-151.0,0.00030665,30]
[391182627,1760409074866,-151.0,0.00030665,30]
[391182628,1760409074875,-151.0,0.00030665,30]
[391182629,1760409074887,-151.0,0.00030665,30]
[391182630,1760409074898,-151.0,0.00030665,30]
[391182631,1760409074908,-151.0,0.00030665,30]
[391182632,1760409074917,-151.0,0.00030665,30]
[391182633,1760409074927,-151.0,0.00030665,30]
[391182634,1760409074936,-151.0,0.00030665,30]
[391182635,1760409074945,-162.501188,0.00030665,30]
[391182636,1760409074954,-151.0,0.00030665,30]
[391182637,1760409074963,-170.373339,0.00030665,30]
[391182638,1760409074973,-151.0,0.00030665,30]
[391182639,1760409074982,-151.0,0.00030665,30]
[391182640,1760409074991,-151.0,0.00030665,30]
[391182641,1760409075002,-151.0,0.00030665,30]
[391182642,1760409075012,-151.0,0.00030665,30]
[391182643,1760409075022,-151.0,0.00030665,30]
[391182644,1760409075031,-151.0,0.00030665,30]
[391182645,1760409075041,-151.0,0.00030665,30]
[391182646,1760409075050,-222.699761,0.00030665,30]
[391182647,1760409075059,-296.348384,0.00030665,30]
[391182648,1760409075068,-222.699761,0.00030665,30]
[391182649,1760409075078,-222.699761,0.00030665,30]
[391182650,1760409075089,-222.699761,0.00030665,30]
[391182651,1760409075100,-151.0,0.00030665,30]
[391182652,1760409075110,-151.0,0.00030665,30]
[391182653,1760409075119,-151.551371,0.00030665,30]
[391182654,1760409075128,-477.257238,0.00030665,30]
[391182655,1760409075140,-477.257238,0.00030665,30]
[391182656,1760409075150,-477.257238,0.00030665,30]
[391182657,1760409075159,-477.257238,0.00030665,30]
[391182658,1760409075168,-151.0,0.00030665,30]
[391182659,1760409075178,-151.0,0.00030665,30]
[391182660,1760409075188,-177.219627,0.00030665,30]
[391182661,1760409075198,-203922.47240571,0.00030665,7]
[391182662,1760409075317,-1227262.33507695,0.00030665,7]
[391182663,1760409075333,-11410.0,0.0002656,2]
[391182664,1760409075566,-500.0,0.0002088,2]
[391182665,1760409075577,-500.0,0.0002088,2]
[391182666,1760409075586,-500.0,0.0002088,2]
[391182667,1760409075599,-500.0,0.0002088,2]
[391182668,1760409075609,-500.0,0.00020976,2]
[391182669,1760409075619,-500.0,0.00020976,2]
[391182670,1760409075629,-500.0,0.00020978,2]
[391182671,1760409075641,-500.0,0.00020978,2]
[391182672,1760409075650,-500.0,0.00020979,2]
[391182673,1760409075660,-500.0,0.00020979,2]
[391182674,1760409075670,-500.0,0.00020979,2]
[391182675,1760409075680,-10140.25,0.0002656,2]
[391182676,1760409075689,-250.0,0.00027474,2]
[391182677,1760409075699,-1000.0,0.00027474,2]
[391182678,1760409075708,-250.0,0.00027474,2]
[391182679,1760409075717,-1000.0,0.00027474,2]
[391182680,1760409075726,-250.0,0.00027474,2]
[391182681,1760409075736,-1000.0,0.00027474,2]
[391182682,1760409075745,-250.0,0.00027474,2]
[391182683,1760409075754,-1000.0,0.00027474,2]
[391182684,1760409075763,-250.0,0.00027474,2]
[391182685,1760409075772,-93.561,0.00027509,2]
[391182686,1760409076191,-3e-08,0.00027509,2]
[391182687,1760409076428,-500.0,0.0002088,2]
[391182688,1760409076439,-500.0,0.0002088,2]
[391182689,1760409076449,-500.0,0.0002088,2]
[391182690,1760409076461,-81.506063,0.00020978,2]
[391182691,1760409076579,500.0,0.00020878,2]
[391182692,1760409076621,5000.0,0.00020878,2]
[391182693,1760409076650,476.9098732,0.00020878,2]
[391182694,1760409076676,23.0901268,0.00020878,2]
[391182695,1760409076706,648.71797344,0.00020878,2]
[391182696,1760409081265,-500.0,0.0002088,2]
[391182697,1760409081274,-495.9847184,0.0002088,2]
[391182698,1760409081380,500.0,0.00020878,2]
[391182699,1760409081418,8828.20189976,0.00020778,2]
[391182700,1760409081439,10000.01,0.00020778,2]
[391182701,1760409081461,10000.01,0.00020778,2]
[391182702,1760409081482,10000.01,0.00020778,2]
[391182703,1760409081503,10000.01,0.00020778,2]
[391182704,1760409081525,10000.01,0.00020778,2]
[391182705,1760409081546,10000.01,0.00020778,2]
[391182706,1760409081567,10000.01,0.00020778,2]
[391182707,1760409081589,10000.01,0.00020778,2]
[391182708,1760409081917,-236.28184371,0.00020778,2]
[391182709,1760409082988,-300.0,0.00020777,2]
[391182710,1760409084520,-344.09062186,0.00020778,2]
[391182711,1760409086650,-277.22444406,0.00020778,2]
[391182712,1760409089003,840.02,0.00020768,10]
[391182713,1760409090057,5000.0,0.00020777,2]
[391182714,1760409100316,1161.24,0.00020768,10]
[391182715,1760409111194,967.7,0.00020768,10]
[391182716,1760409112183,5000.0,0.00020778,2]
[391182717,1760409122586,806.41,0.00020768,10]
[391182718,1760409122620,300.0,0.00020777,2]
[391182719,1760409128748,563.783715,0.00019933,2]
[391182720,1760409133751,672.01,0.00020768,10]
[391182721,1760409135382,1690.106285,0.00020778,2]
[391182722,1760409135404,3309.893715,0.00020778,2]
[391182723,1760409144581,560.01,0.00020768,10]
[391182724,1760409147696,1200.0,0.00020777,2]
[391182725,1760409154953,466.67,0.00020768,10]
[391182726,1760409157118,500.0,0.00020777,2]
[391182727,1760409157152,500.0,0.00020777,2]
[391182728,1760409157180,415.0703483,0.00020777,2]
[391182729,1760409157212,500.0,0.00020777,2]
[391182730,1760409157244,500.0,0.00020777,2]
[391182731,1760409157274,585.39924227,0.00020777,2]
[391182732,1760409157301,500.0,0.00020777,2]
[391182733,1760409157328,500.0,0.00020777,2]
[391182734,1760409157364,462.96669443,0.00020777,2]
[391182735,1760409157387,37.03330557,0.00020777,2]
[391182736,1760409157417,500.0,0.00020777,2]
[391182737,1760409157455,500.0,0.00020777,2]
[391182738,1760409157489,5000.0,0.00020778,2]
[391182740,1760409163090,223.32194561,0.00020678,2]
[391182741,1760409173015,5000.0,0.00020724,2]
[391182742,1760409181460,4776.68805439,0.00020724,2]
[391182743,1760409181482,223.31194561,0.00020724,2]
[391182744,1760409196352,3893.478809,0.00020724,2]
[391182745,1760409199844,1523.18,0.00019909,2]
[391182746,1760409201967,176.53135492,0.00020677,2]
[391182747,1760409204275,4183.50789047,0.00020724,2]
[391182748,1760409204299,816.49210953,0.00020724,2]
[391182749,1760409207149,176.53135491,0.00020678,2]
[391182750,1760409219216,669.57339988,0.00020632,2]
[391182751,1760409227167,5000.0,0.00020632,2]
[391182752,1760409239109,4330.43660012,0.00020632,2]
[391182753,1760409247943,-268.38059175,0.00020632,2]
[391182754,1760409249898,-180.54889743,0.00020632,2]
[391182755,1760409254376,5000.0,0.00020605,2]
[391182756,1760409256391,5000.01,0.0002,2]
[391182757,1760409256415,10000.01,0.0002,2]
[391182758,1760409256435,10000.01,0.0002,2]
[391182759,1760409256456,10000.01,0.0002,2]
[391182760,1760409256477,10000.01,0.0002,2]
[391182761,1760409256497,10000.01,0.0002,2]
[391182762,1760409256519,258.72473554,0.0002,2]
[391182763,1760409261089,-220.6339107,0.00020632,2]
[391182764,1760409269285,5000.0,0.00020632,2]